bitfinex-derivatives/quotes_SOLF0:USTF0_20250501
["timestamp","ask_amount","ask_price","bid_price","bid_amount"]
[1746057602053,1.9651,147.63,147.49,5.9671]
[1746057603251,6.774,147.62,147.59,6.7747]
[1746057603453,6.774,147.62,147.49,5.9671]
[1746057604150,6.774,147.62,147.49,3.9267]
[1746057604351,6.774,147.62,147.59,6.7749]
[1746057604750,2.0686,147.67,147.59,6.7749]
[1746057604950,2.0686,147.67,147.6,6.7746]
[1746057605251,6.7738,147.63,147.6,6.7746]
[1746057605455,23.56,147.62,147.6,6.7746]
[1746057605753,23.56,147.62,147.59,6.7749]
[1746057606054,30.334,147.62,147.6,6.7744]
[1746057606747,22.4086,147.67,147.55,1.9333]
[1746057606953,23.56,147.66,147.56,1.97]
[1746057607456,23.56,147.66,147.57,13.552]
[1746057607747,23.56,147.66,147.58,23.56]
[1746057608454,23.56,147.66,147.64,6.7726]
[1746057608656,23.56,147.66,147.58,23.56]
[1746057609049,23.56,147.66,147.65,6.7724]
[1746057611356,23.56,147.66,147.58,23.56]
[1746057611856,30.3322,147.66,147.58,23.56]
[1746057612155,23.56,147.66,147.58,23.56]
[1746057613057,30.3321,147.66,147.58,23.56]
[1746057613258,23.56,147.66,147.58,23.56]
[1746057613659,30.3322,147.66,147.63,6.773]
[1746057613960,30.3322,147.66,147.58,23.56]
[1746057614254,23.56,147.69,147.59,13.5502]
[1746057614460,23.56,147.69,147.6,2.0707]
[1746057614860,23.56,147.69,147.61,2.0179]
[1746057615061,23.56,147.69,147.67,6.7712]
[1746057615463,23.56,147.69,147.62,23.56]
[1746057616463,23.56,147.69,147.67,6.7712]
[1746057616665,23.56,147.69,147.62,23.56]
[1746057616858,536.72,147.74,147.63,13.5465]
[1746057617064,23.56,147.75,147.62,23.56]
[1746057617264,30.3283,147.74,147.62,23.56]
[1746057617465,23.56,147.74,147.72,6.7691]
[1746057618262,23.56,147.74,147.73,6.7687]
[1746057618463,23.56,147.74,147.67,2.0557]
[1746057619765,23.56,147.74,147.72,6.7689]
[1746057620165,30.3284,147.74,147.67,2.0557]
[1746057620365,30.3284,147.74,147.71,6.7694]
[1746057620564,30.3284,147.74,147.67,2.0557]
[1746057620865,23.56,147.74,147.67,2.0557]
[1746057621065,23.56,147.74,147.65,1.9415]
[1746057621257,2.0736,147.73,147.65,1.9415]
[1746057621462,4.1953,147.73,147.65,1.9415]
[1746057621761,6.7708,147.69,147.66,6.7717]
[1746057622262,6.7708,147.69,147.67,6.7712]
[1746057622567,30.3303,147.7,147.67,6.7712]
[1746057622765,23.56,147.7,147.67,6.7712]
[1746057623567,30.3304,147.7,147.67,6.7712]
[1746057626768,30.3304,147.7,147.68,6.771]
[1746057627270,23.56,147.7,147.69,6.7706]
[1746057627668,27.7553,147.73,147.69,6.7706]
[1746057627871,6.7696,147.72,147.69,6.7706]
[1746057628170,6.7696,147.72,147.7,6.7701]
[1746057628470,34.5243,147.73,147.7,6.7701]
[1746057628665,23.56,147.73,147.65,1.9415]
[1746057628865,30.3262,147.79,147.66,27.4446]
[1746057629266,30.3262,147.79,147.68,13.5419]
[1746057629467,23.56,147.79,147.66,563.8246]
[1746057629872,23.56,147.79,147.69,6.7701]
[1746057630070,30.326,147.79,147.7,23.56]
[1746057630366,23.56,147.79,147.7,23.56]
[1746057630567,23.56,147.79,147.71,2.088]
[1746057631172,23.56,147.79,147.77,6.7669]
[1746057632171,30.326,147.79,147.77,6.7669]
[1746057632571,30.326,147.79,147.76,6.7671]
[1746057633071,6.7665,147.78,147.76,6.7671]
[1746057633273,23.56,147.79,147.76,6.7671]
[1746057633674,30.3262,147.79,147.76,6.7671]
[1746057635677,30.3262,147.79,147.77,6.7668]
[1746057637378,23.56,147.79,147.77,6.7668]
[1746057637671,23.56,147.79,147.76,6.7671]
[1746057637876,30.3261,147.79,147.76,6.7671]
[1746057638080,23.56,147.79,147.72,4.0694]
[1746057638377,30.326,147.79,147.72,4.0694]
[1746057639475,23.56,147.79,147.71,2.088]
[1746057639878,6.7676,147.76,147.73,6.7685]
[1746057640380,6.7682,147.75,147.72,6.769]
[1746057640677,30.4082,147.75,147.72,6.769]
[1746057642384,30.4082,147.75,147.67,29.8693]
[1746057642385,6.7686,147.74,147.71,6.7694]
[1746057642575,6.7686,147.74,147.67,29.8693]
[1746057643080,6.7686,147.74,147.71,6.7692]
[1746057643281,6.7686,147.74,147.67,29.8693]
[1746057644782,6.7687,147.73,147.71,6.7694]
[1746057645287,6.7684,147.74,147.71,6.7694]
[1746057646381,6.7687,147.73,147.71,6.7694]
[1746057647584,6.7687,147.73,147.67,29.8693]
[1746057647585,6.7685,147.74,147.72,6.7692]
[1746057647786,6.7685,147.74,147.67,29.8693]
[1746057648186,6.7685,147.74,147.71,6.7693]
[1746057648984,6.7685,147.74,147.72,6.7691]
[1746057649183,30.408,147.75,147.72,6.7691]
[1746057649687,6.7683,147.74,147.72,6.7691]
[1746057651586,23.64,147.75,147.72,6.7691]
[1746057652188,30.4079,147.75,147.72,6.7691]
[1746057652587,30.4079,147.75,147.67,29.8693]
[1746057653188,30.4079,147.75,147.72,6.769]
[1746057655485,23.64,147.75,147.67,29.8693]
[1746057655791,23.64,147.78,147.67,29.8693]
[1746057656191,30.4068,147.78,147.75,6.7676]
[1746057657090,23.64,147.78,147.67,29.8693]
[1746057657290,1.9184,147.77,147.67,29.8693]
[1746057657486,1.9184,147.77,147.62,358.0]
[1746057657687,2.0953,147.76,147.64,23.64]
[1746057658295,6.7696,147.72,147.69,6.7702]
[1746057658489,30.4096,147.72,147.64,23.64]
[1746057658690,23.64,147.72,147.64,23.64]
[1746057658894,23.64,147.72,147.7,6.7699]
[1746057659193,23.64,147.72,147.64,37.1852]
[1746057659586,30.4082,147.75,147.64,37.1852]
[1746057659796,23.64,147.75,147.64,37.1852]
[1746057660195,6.7683,147.74,147.64,37.1852]
[1746057660490,23.64,147.75,147.65,13.5448]
[1746057660795,30.408,147.75,147.65,13.5448]
[1746057660998,23.64,147.75,147.66,2.0172]
[1746057661495,23.64,147.75,147.73,6.7683]
[1746057661690,23.64,147.78,147.68,23.64]
[1746057661996,23.64,147.78,147.69,4.007]
[1746057662294,23.64,147.78,147.77,6.7669]
[1746057665894,23.64,147.81,147.73,13.5374]
[1746057666096,23.64,147.81,147.73,2.1045]
[1746057666297,2.0258,147.83,147.8,6.7653]
[1746057666597,2.0258,147.83,147.72,23.64]
[1746057666890,2.0258,147.83,147.76,6.767]
[1746057667096,2.0258,147.83,147.72,23.64]
[1746057667298,6.7655,147.81,147.72,23.64]
[1746057667493,23.7,147.8,147.78,6.7664]
[1746057667696,23.7,147.8,147.72,23.64]
[1746057670699,30.4658,147.8,147.76,6.7669]
[1746057671301,23.7,147.8,147.72,23.64]
[1746057672602,23.7,147.8,147.77,6.7666]
[1746057672901,23.7,147.8,147.72,23.64]
[1746057673303,6.766,147.79,147.77,6.7668]
[1746057674001,30.4657,147.8,147.77,6.7668]
[1746057674699,23.7,147.8,147.72,23.64]
[1746057675500,23.7,147.8,147.78,6.7662]
[1746057675700,23.7,147.8,147.72,23.64]
[1746057677203,23.7,147.8,147.79,6.766]
[1746057678899,23.7,147.83,147.82,6.7646]
[1746057679297,23.7,147.83,147.74,13.536]
[1746057679498,23.7,147.83,147.75,3.8981]
[1746057680202,23.7,147.83,147.81,6.7647]
[1746057680603,23.7,147.83,147.75,3.8981]
[1746057680903,23.7,147.83,147.81,6.7648]
[1746057681203,23.7,147.83,147.75,3.8981]
[1746057681804,6.7649,147.82,147.75,3.8981]
[1746057682203,6.7649,147.82,147.79,6.7656]
[1746057682406,30.4643,147.83,147.75,3.8981]
[1746057683206,23.7,147.83,147.75,3.8981]
[1746057683705,23.7,147.83,147.76,37.2347]
[1746057684508,23.7,147.83,147.82,6.7646]
[1746057685602,23.7,147.83,147.76,23.7]
[1746057685815,23.7,147.83,147.75,3.8981]
[1746057686007,6.7649,147.82,147.79,6.7656]
[1746057686202,20.32,147.81,147.68,13.5419]
[1746057686409,1.2439007,147.8,147.62,19.17629698]
[1746057686706,6.7695,147.72,147.62,23.22749698]
[1746057686906,23.7,147.71,147.62,23.22749698]
[1746057687109,23.7,147.7,147.62,19.17629698]
[1746057687308,23.7,147.69,147.62,19.17629698]
[1746057687506,23.7,147.68,147.62,19.17629698]
[1746057687902,23.7,147.68,147.63,166.90416672]
[1746057688206,23.7,147.68,147.63,160.13116672]
[1746057688404,23.7,147.68,147.64,102.85130003]
[1746057688607,4.97865132,147.67,147.64,96.07870003]
[1746057688910,4.97865132,147.66,147.59,23.7]
[1746057689102,4.97865132,147.65,147.59,23.7]
[1746057689302,4.97865132,147.64,147.59,23.7]
[1746057689501,23.7,147.68,147.59,23.7]
[1746057690607,23.7,147.68,147.67,6.7715]
[1746057691005,364.0,147.77,147.7,6.7699]
[1746057691212,23.7,147.76,147.64,23.7]
[1746057691510,23.7,147.76,147.65,4.0035]
[1746057692213,6.7685,147.74,147.7,6.7697]
[1746057692415,6.7685,147.74,147.65,4.0035]
[1746057692613,23.7,147.76,147.65,4.0035]
[1746057693516,6.7683,147.74,147.71,6.7694]
[1746057694115,6.768,147.75,147.72,6.7692]
[1746057694609,6.7683,147.74,147.71,6.7694]
[1746057695612,6.7687,147.73,147.71,6.7694]
[1746057695914,23.7,147.76,147.71,6.7694]
[1746057696413,6.7686,147.74,147.71,6.7694]
[1746057697115,6.768,147.75,147.71,6.7694]
[1746057697416,6.768,147.75,147.72,6.7691]
[1746057697717,6.7684,147.74,147.66,2.1201]
[1746057698516,6.7684,147.74,147.71,6.7694]
[1746057699111,6.769,147.73,147.69,6.7706]
[1746057699318,23.88,147.72,147.65,4.0035]
[1746057699507,23.88,147.71,147.65,4.0035]
[1746057700007,6.7703,147.7,147.67,6.7712]
[1746057701318,23.88,147.71,147.65,4.0035]
[1746057702520,4.84235527,147.7,147.68,6.7707]
[1746057702716,4.84235527,147.69,147.65,4.0035]
[1746057702915,4.84235527,147.68,147.65,4.0035]
[1746057703120,30.6496,147.71,147.68,6.7707]
[1746057703419,4.84194728,147.7,147.65,4.0035]
[1746057703610,4.84103673,147.69,147.68,6.771]
[1746057704115,23.88,147.71,147.69,6.7702]
[1746057704918,4.84021817,147.7,147.69,6.7702]
[1746057706321,4.83956445,147.7,147.69,6.7702]
[1746057706918,4.83956445,147.7,147.68,6.7708]
[1746057707119,4.83956445,147.69,147.68,6.7708]
[1746057708819,4.83956445,147.69,147.61,25.9178]
[1746057709020,4.83956445,147.68,147.61,29.9642]
[1746057709220,4.83956445,147.67,147.61,29.9642]
[1746057709421,4.83956445,147.66,147.61,29.9642]
[1746057709719,23.88,147.67,147.61,29.9642]
[1746057710422,23.88,147.67,147.65,6.7721]
[1746057710622,4.83573272,147.66,147.65,6.7721]
[1746057710818,23.88,147.67,147.65,6.7721]
[1746057711820,4.83727979,147.66,147.65,6.7721]
[1746057712226,30.6515,147.67,147.65,6.7721]
[1746057713224,23.88,147.67,147.65,6.7721]
[1746057713424,23.88,147.67,147.61,6.0842]
[1746057714527,23.88,147.67,147.65,6.7722]
[1746057715028,4.83655007,147.66,147.65,6.7722]
[1746057718230,23.88,147.67,147.65,6.7722]
[1746057718431,4.83524394,147.66,147.65,6.7722]
[1746057720128,4.83510976,147.66,147.65,6.7722]
[1746057721237,4.83510976,147.66,147.64,6.7727]
[1746057721434,4.83510976,147.65,147.64,6.7727]
[1746057722328,4.83510976,147.66,147.64,6.7727]
[1746057722536,30.6517,147.67,147.65,6.7724]
[1746057722737,4.83516356,147.66,147.61,6.0842]
[1746057723037,4.83516356,147.65,147.61,6.0842]
[1746057723235,23.88,147.67,147.61,6.0842]
[1746057723437,4.83519845,147.66,147.61,6.0842]
[1746057723735,4.83519845,147.65,147.61,6.0842]
[1746057724035,23.88,147.67,147.61,6.0842]
[1746057724236,4.83595955,147.66,147.61,6.0842]
[1746057724435,4.83595955,147.65,147.61,6.0842]
[1746057724636,23.88,147.67,147.61,6.0842]
[1746057724839,4.83595584,147.66,147.61,6.0842]
[1746057725140,23.88,147.67,147.61,6.0842]
[1746057725939,23.88,147.67,147.66,6.7719]
[1746057726841,23.78,147.7,147.68,6.7706]
[1746057727242,23.78,147.7,147.62,23.78]
[1746057728045,4.84121439,147.69,147.62,23.78]
[1746057728241,4.84121439,147.68,147.62,23.78]
[1746057728441,23.78,147.7,147.62,23.78]
[1746057728641,23.78,147.73,147.62,23.78]
[1746057728838,23.78,147.74,147.62,23.78]
[1746057729047,23.78,147.75,147.65,13.5444]
[1746057729346,23.78,147.75,147.66,23.78]
[1746057729846,23.78,147.75,147.67,1.981]
[1746057730345,23.78,147.75,147.72,6.7689]
[1746057730947,30.5478,147.75,147.73,6.7687]
[1746057731345,30.5478,147.75,147.72,6.7688]
[1746057731845,30.5478,147.75,147.73,6.7687]
[1746057732145,30.5478,147.75,147.67,1.981]
[1746057732446,30.5478,147.75,147.72,6.7688]
[1746057733246,30.5478,147.75,147.73,6.7686]
[1746057733442,23.76,147.77,147.67,1.981]
[1746057733649,23.76,147.77,147.68,17.6925]
[1746057734148,535.98,147.79,147.68,17.6925]
[1746057734149,559.74,147.79,147.69,13.5411]
[1746057734348,23.76,147.79,147.7,23.76]
[1746057734549,23.76,147.79,147.78,6.7664]
[1746057734952,23.76,147.79,147.7,23.76]
[1746057735750,30.5262,147.79,147.76,6.767]
[1746057735949,23.76,147.79,147.76,6.767]
[1746057736650,23.76,147.79,147.77,6.7668]
[1746057738552,23.76,147.79,147.7,23.76]
[1746057738952,6.7672,147.77,147.7,23.76]
[1746057739551,6.7666,147.78,147.75,6.7677]
[1746057740052,6.7666,147.78,147.76,6.7673]
[1746057740449,4.71735506,147.77,147.76,6.7673]
[1746057741047,4.71742709,147.78,147.76,6.7673]
[1746057741246,4.71742709,147.77,147.76,6.7673]
[1746057742556,23.76,147.79,147.78,6.7664]
[1746057742751,28.47382634,147.79,147.78,6.7664]
[1746057744458,23.76,147.82,147.81,6.7651]
[1746057744657,28.46894918,147.82,147.81,6.7651]
[1746057746358,23.76,147.82,147.81,6.7651]
[1746057747255,28.46664096,147.82,147.81,6.7651]
[1746057747459,23.76,147.85,147.75,5.947]
[1746057747652,4.70399545,147.84,147.75,5.947]
[1746057747855,4.70399545,147.83,147.75,5.947]
[1746057748051,23.76,147.85,147.83,6.7638]
[1746057748254,4.70341816,147.84,147.83,6.7638]
[1746057748664,4.70341816,147.84,147.82,6.7645]
[1746057748857,4.70341816,147.83,147.82,6.7645]
[1746057749058,4.70341816,147.83,147.75,5.947]
[1746057749260,23.76,147.85,147.75,5.947]
[1746057749459,11.46339829,147.84,147.81,6.7648]
[1746057749658,4.69939829,147.83,147.75,5.947]
[1746057749962,6.764,147.84,147.82,6.7645]
[1746057750160,4.69930766,147.83,147.82,6.7645]
[1746057750663,4.69930766,147.83,147.81,6.7649]
[1746057750863,6.7638,147.84,147.81,6.7649]
[1746057751867,6.7638,147.84,147.82,6.7645]
[1746057752065,30.5234,147.85,147.82,6.7645]
[1746057752356,4.69561749,147.84,147.82,6.7645]
[1746057752554,6.7637,147.84,147.82,6.7645]
[1746057753869,23.76,147.85,147.84,6.7637]
[1746057754062,28.45300299,147.85,147.84,6.7637]
[1746057754265,28.45300299,147.85,147.78,23.76]
[1746057754467,4.69300299,147.84,147.78,23.76]
[1746057754659,23.76,147.85,147.78,23.76]
[1746057754862,4.69294666,147.84,147.78,23.76]
[1746057755160,30.5234,147.85,147.82,6.7643]
[1746057755356,4.69295205,147.84,147.82,6.7643]
[1746057755556,30.5234,147.85,147.82,6.7643]
[1746057755763,4.69249394,147.84,147.82,6.7643]
[1746057755966,30.5234,147.85,147.82,6.7643]
[1746057756163,4.69252875,147.84,147.82,6.7643]
[1746057756364,30.5234,147.85,147.83,6.764]
[1746057756563,4.69213403,147.84,147.83,6.764]
[1746057756968,23.76,147.85,147.84,6.7637]
[1746057757169,28.45238426,147.85,147.84,6.7637]
[1746057757363,23.76,147.85,147.84,6.7637]
[1746057759170,23.76,147.85,147.83,6.7639]
[1746057760069,23.76,147.85,147.84,6.7637]
[1746057761174,28.45133118,147.85,147.84,6.7637]
[1746057761372,35.21453118,147.85,147.83,6.7639]
[1746057761567,30.5232,147.85,147.78,23.76]
[1746057761873,4.69284885,147.84,147.78,23.76]
[1746057762075,23.76,147.85,147.81,6.7648]
[1746057762271,4.69284187,147.84,147.81,6.7648]
[1746057762566,6.7639,147.84,147.81,6.7648]
[1746057762768,23.76,147.85,147.75,29.647]
[1746057762976,4.6945498,147.84,147.75,29.647]
[1746057763171,4.6945498,147.83,147.75,29.647]
[1746057763367,4.6945498,147.82,147.75,29.647]
[1746057763567,23.76,147.85,147.75,29.647]
[1746057763770,4.69729234,147.84,147.75,29.647]
[1746057763977,6.765,147.82,147.75,29.647]
[1746057764272,23.76,147.85,147.75,29.647]
[1746057764674,6.7644,147.83,147.8,6.7651]
[1746057764874,4.6995645,147.81,147.8,6.7651]
[1746057765075,6.45e-05,147.82,147.75,29.647]
[1746057765375,23.76,147.85,147.75,29.647]
[1746057765578,23.76,147.85,147.77,13.5336]
[1746057765875,23.76,147.85,147.84,6.7637]
[1746057767275,23.76,147.85,147.83,6.7639]
[1746057767775,30.5233,147.85,147.83,6.7639]
[1746057767971,23.76,147.85,147.84,6.7637]
[1746057768674,23.76,147.85,147.83,6.764]
[1746057769780,23.76,147.85,147.77,13.5336]
[1746057771077,30.5233,147.85,147.83,6.7639]
[1746057772077,6.7637,147.84,147.82,6.7644]
[1746057772978,30.5234,147.85,147.83,6.764]
[1746057773978,23.76,147.85,147.83,6.764]
[1746057774677,23.76,147.85,147.77,13.5336]
[1746057774678,23.76,147.85,147.84,6.7637]
[1746057775679,30.5232,147.85,147.83,6.7639]
[1746057775877,23.76,147.85,147.77,13.5336]
[1746057776779,30.5235,147.85,147.77,13.5336]
[1746057777181,23.76,147.85,147.77,13.5336]
[1746057777375,30.5232,147.85,147.83,6.7638]
[1746057777679,23.76,147.85,147.77,13.5336]
[1746057777879,6.7637,147.84,147.82,6.7642]
[1746057778081,4.61085741,147.83,147.82,6.7642]
[1746057778381,23.76,147.85,147.77,13.5336]
[1746057778979,23.76,147.85,147.75,29.647]
[1746057779173,6.7648,147.82,147.79,6.7656]
[1746057779580,6.7648,147.82,147.75,29.647]
[1746057779882,6.7648,147.82,147.79,6.7655]
[1746057780381,6.7642,147.83,147.75,29.647]
[1746057780581,23.76,147.85,147.75,29.647]
[1746057781083,23.76,147.85,147.83,6.764]
[1746057781482,4.6161745,147.84,147.83,6.764]
[1746057782481,4.61709129,147.84,147.83,6.764]
[1746057785983,23.76,147.85,147.84,6.7637]
[1746057786282,28.37851324,147.85,147.84,6.7637]
[1746057787784,28.38317732,147.85,147.79,23.7]
[1746057788083,6.7642,147.83,147.76,37.3741]
[1746057788283,4.62317732,147.82,147.76,23.84]
[1746057788485,4.62317732,147.81,147.8,6.7651]
[1746057789985,4.62317732,147.81,147.79,6.7658]
[1746057790184,4.62317732,147.8,147.79,6.7658]
[1746057790482,4.62317732,147.8,147.76,23.84]
[1746057790483,4.62317732,147.8,147.75,5.947]
[1746057790682,4.62317732,147.79,147.75,5.947]
[1746057790882,23.84,147.81,147.75,5.947]
[1746057791086,6.7656,147.8,147.78,6.7662]
[1746057791385,23.84,147.81,147.78,6.7662]
[1746057791785,4.85117071,147.8,147.78,6.7662]
[1746057791986,4.85117071,147.79,147.78,6.7662]
[1746057792887,23.84,147.81,147.79,6.7656]
[1746057793383,23.84,147.81,147.8,6.7655]
[1746057795891,23.84,147.84,147.82,6.7641]
[1746057796090,30.6039,147.84,147.75,5.947]
[1746057796291,30.6039,147.84,147.81,6.7647]
[1746057796888,23.84,147.84,147.75,5.947]
[1746057797391,6.7644,147.83,147.8,6.7651]
[1746057797585,23.84,147.84,147.8,6.7651]
[1746057797791,23.84,147.84,147.75,5.947]
[1746057798489,6.7648,147.82,147.79,6.7656]
[1746057798792,6.7651,147.81,147.79,6.7656]
[1746057799489,6.7648,147.82,147.79,6.7656]
[1746057799684,23.84,147.84,147.78,6.7662]
[1746057799891,6.7654,147.81,147.78,6.7662]
[1746057800091,23.84,147.8,147.78,6.7662]
[1746057801694,30.6056,147.8,147.78,6.7662]
[1746057801994,4.85898368,147.79,147.78,6.7662]
[1746057802595,11.62508368,147.79,147.77,6.7667]
[1746057802790,4.85898368,147.78,147.75,1.9295]
[1746057802999,4.85898368,147.77,147.7,30.0107]
[1746057803295,4.85898368,147.76,147.7,30.0107]
[1746057803496,4.85898368,147.75,147.7,30.0107]
[1746057803796,4.85898368,147.74,147.7,30.0107]
[1746057803992,4.85898368,147.73,147.72,6.7692]
[1746057804691,8.368e-05,147.73,147.72,6.7692]
[1746057804891,23.84,147.8,147.7,30.0107]
[1746057805295,6.7664,147.79,147.7,30.0107]
[1746057805695,6.7664,147.79,147.76,6.767]
[1746057805897,6.7664,147.78,147.76,6.767]
[1746057808598,6.7664,147.78,147.75,6.7676]
[1746057809499,6.7664,147.78,147.76,6.7673]
[1746057809700,6.7664,147.78,147.7,30.0107]
[1746057809994,6.7664,147.78,147.75,6.7676]
[1746057810299,6.7669,147.77,147.75,6.7676]
[1746057810596,6.7669,147.77,147.7,30.0107]
[1746057810597,23.84,147.76,147.7,30.0107]
[1746057810801,23.84,147.76,147.7,27.9296]
[1746057810999,23.84,147.76,147.7,2.113]
[1746057811194,6.7685,147.74,147.71,6.7695]
[1746057812605,6.7687,147.73,147.71,6.7695]
[1746057813305,6.7683,147.74,147.71,6.7695]
[1746057813606,23.84,147.76,147.72,6.7691]
[1746057813803,6.7681,147.75,147.72,6.7691]
[1746057815005,23.84,147.76,147.67,23.84]
[1746057815803,23.84,147.76,147.73,6.7684]
[1746057816307,30.6077,147.76,147.73,6.7684]
[1746057816808,4.71760523,147.75,147.73,6.7684]
[1746057817008,4.71760523,147.74,147.73,6.7684]
[1746057817607,4.71760523,147.74,147.72,6.769]
[1746057817808,4.71760523,147.73,147.72,6.769]
[1746057823408,4.71760523,147.73,147.67,23.84]
[1746057823609,11.48446554,147.72,147.67,23.84]
[1746057823809,4.71526554,147.71,147.66,3.8429]
[1746057824005,4.71526554,147.7,147.65,1.9138]
[1746057824215,4.71526554,147.69,147.65,1.9138]
[1746057824413,4.71526554,147.69,147.64,23.78]
[1746057824610,4.71526554,147.69,147.62,4.1345]
[1746057824811,35.26626554,147.68,147.62,4.1345]
[1746057825112,4.71526554,147.67,147.66,6.7718]
[1746057825312,4.71327338,147.67,147.62,4.1345]
[1746057825509,23.78,147.68,147.62,4.1345]
[1746057825813,4.71334197,147.67,147.62,4.1345]
[1746057826013,23.78,147.68,147.62,4.1345]
[1746057826914,4.71334753,147.67,147.62,4.1345]
[1746057827112,23.78,147.68,147.62,4.1345]
[1746057827414,4.71374169,147.67,147.62,4.1345]
[1746057827615,23.78,147.68,147.67,6.7715]
[1746057827818,28.49172206,147.68,147.67,6.7715]
[1746057828013,35.26282206,147.68,147.62,4.1345]
[1746057828214,4.71172206,147.67,147.62,4.1345]
[1746057828521,30.5511,147.68,147.65,6.7721]
[1746057828718,4.71068952,147.67,147.65,6.7721]
[1746057829018,30.5511,147.68,147.65,6.7721]
[1746057829220,4.7107078,147.67,147.65,6.7721]
[1746057829423,30.5511,147.68,147.65,6.7721]
[1746057829618,4.70992452,147.67,147.65,6.7721]
[1746057829817,6.7715,147.67,147.64,6.7727]
[1746057830017,4.71019901,147.66,147.64,6.7727]
[1746057830220,6.7715,147.67,147.64,6.7727]
[1746057830519,4.71127249,147.66,147.64,6.7727]
[1746057830720,6.7715,147.67,147.64,6.7727]
[1746057830918,4.70951095,147.66,147.64,6.7727]
[1746057831121,6.7715,147.67,147.64,6.7727]
[1746057831316,4.70921823,147.66,147.64,6.7727]
[1746057831517,4.70921823,147.65,147.64,6.7727]
[1746057831716,4.70921823,147.65,147.63,6.7731]
[1746057831916,6.7719,147.66,147.63,6.7731]
[1746057832219,4.70931644,147.65,147.63,6.7731]
[1746057832419,6.7719,147.66,147.63,6.7731]
[1746057832620,6.7719,147.66,147.61,2.1018]
[1746057832621,4.70931692,147.65,147.64,6.7728]
[1746057833315,4.70890752,147.65,147.64,6.7728]
[1746057834213,6.7715,147.67,147.64,6.7728]
[1746057834418,4.70844824,147.66,147.64,6.7728]
[1746057834614,6.7715,147.67,147.65,6.7724]
[1746057834822,4.70843249,147.66,147.65,6.7724]
[1746057835320,23.78,147.68,147.66,6.7715]
[1746057835621,4.70823026,147.67,147.66,6.7715]
[1746057839223,23.78,147.68,147.67,6.7715]
[1746057839428,28.48773242,147.68,147.67,6.7715]
[1746057839924,28.48784559,147.68,147.67,6.7715]
[1746057841126,28.4886006,147.68,147.67,6.7715]
[1746057841426,28.4886006,147.68,147.66,6.7717]
[1746057841725,4.7086006,147.67,147.66,6.7717]
[1746057842626,4.7086006,147.67,147.65,6.7722]
[1746057844228,11.4801006,147.67,147.65,6.7722]
[1746057844430,4.7086006,147.66,147.64,6.7726]
[1746057844728,11.4808006,147.66,147.61,2.1018]
[1746057844928,4.7086006,147.65,147.61,2.1018]
[1746057845329,4.7086006,147.65,147.63,6.7729]
[1746057845829,11.4811006,147.65,147.63,6.7729]
[1746057846027,6.7725,147.65,147.63,6.7729]
[1746057846330,4.71332904,147.64,147.63,6.7729]
[1746057846629,4.71360469,147.64,147.63,6.7729]
[1746057848330,6.7724,147.65,147.63,6.7729]
[1746057849422,23.78,147.68,147.62,6.7735]
[1746057849926,23.78,147.68,147.61,2.1018]
[1746057850731,6.772,147.66,147.63,6.7731]